fUST/lending_fUST_20260521
["ID","MTS","AMOUNT","RATE_DAILY","PERIOD"]
[422723487,1779312641000,-2167.22,8.493e-05,2]
[422723494,1779312641000,-5297.76,8.493e-05,2]
[422723491,1779312641000,-500.0,8.493e-05,2]
[422723489,1779312641000,-500.0,8.493e-05,2]
[422723490,1779312641000,-3259.7,8.493e-05,2]
[422723484,1779312641000,-500.0,8.493e-05,2]
[422723495,1779312641000,-500.0,8.493e-05,2]
[422723486,1779312641000,-1366.02,8.493e-05,2]
[422723482,1779312641000,-25838.33,8.493e-05,2]
[422723478,1779312641000,-151.0,8.493e-05,2]
[422723477,1779312641000,-151.0,8.493e-05,2]
[422723476,1779312641000,-1194.97,8.493e-05,2]
[422723485,1779312641000,-500.0,8.493e-05,2]
[422723474,1779312641000,-500.0,8.493e-05,2]
[422723565,1779312642000,-742.0,8.556e-05,2]
[422723573,1779312642000,-693.3919763,8.672e-05,2]
[422723572,1779312642000,-440.40053171,8.641e-05,2]
[422723570,1779312642000,-232.597,8.638e-05,2]
[422723568,1779312642000,-644.79446246,8.562e-05,2]
[422723560,1779312642000,-151.0,8.5e-05,2]
[422723564,1779312642000,-2203.0,8.556e-05,2]
[422723561,1779312642000,-621.78829552,8.507e-05,2]
[422723555,1779312642000,-500.0,8.5e-05,2]
[422723571,1779312642000,-268.388,8.638e-05,2]
[422723557,1779312642000,-794.0,8.5e-05,2]
[422723566,1779312642000,-185.0,8.556e-05,2]
[422723559,1779312642000,-151.0,8.5e-05,2]
[422723590,1779312642000,-500.0,8.767e-05,2]
[422723567,1779312642000,-447.119,8.556e-05,2]
[422723574,1779312642000,-587.0,8.711e-05,2]
[422723575,1779312642000,-587.0,8.711e-05,2]
[422723577,1779312642000,-719.04747942,8.727e-05,2]
[422723569,1779312642000,-668.65185757,8.617e-05,2]
[422723579,1779312642000,-203.28452992,8.767e-05,2]
[422723578,1779312642000,-2423.4053,8.767e-05,2]
[422723592,1779312642000,-500.0,8.767e-05,2]
[422723594,1779312642000,-642.15123389,8.767e-05,2]
[422723597,1779312642000,-500.0,8.767e-05,2]
[422723596,1779312642000,-500.0,8.767e-05,2]
[422723599,1779312642000,-645.88,8.767e-05,2]
[422723558,1779312642000,-198.788604,8.5e-05,2]
[422723580,1779312642000,-623.41,8.767e-05,2]
[422723576,1779312642000,-2351.0,8.711e-05,2]
[422723553,1779312642000,-500.0,8.5e-05,2]
[422723538,1779312642000,-500.0,8.493e-05,2]
[422723556,1779312642000,-536.11,8.5e-05,2]
[422723581,1779312642000,-151.0,8.767e-05,2]
[422723530,1779312642000,-151.0,8.493e-05,2]
[422723535,1779312642000,-644.94,8.493e-05,2]
[422723531,1779312642000,-500.0,8.493e-05,2]
[422723533,1779312642000,-2196.66,8.493e-05,2]
[422723529,1779312642000,-500.0,8.493e-05,2]
[422723527,1779312642000,-500.0,8.493e-05,2]
[422723532,1779312642000,-1486.64,8.493e-05,2]
[422723528,1779312642000,-1777.68,8.493e-05,2]
[422723534,1779312642000,-5122.9,8.493e-05,2]
[422723536,1779312642000,-500.0,8.493e-05,2]
[422723539,1779312642000,-500.0,8.493e-05,2]
[422723540,1779312642000,-500.0,8.5e-05,2]
[422723554,1779312642000,-500.0,8.5e-05,2]
[422723541,1779312642000,-500.0,8.5e-05,2]
[422723537,1779312642000,-1247.79,8.493e-05,2]
[422723548,1779312642000,-500.0,8.5e-05,2]
[422723545,1779312642000,-500.0,8.5e-05,2]
[422723544,1779312642000,-500.0,8.5e-05,2]
[422723546,1779312642000,-500.0,8.5e-05,2]
[422723543,1779312642000,-500.0,8.5e-05,2]
[422723547,1779312642000,-500.0,8.5e-05,2]
[422723550,1779312642000,-500.0,8.5e-05,2]
[422723549,1779312642000,-500.0,8.5e-05,2]
[422723552,1779312642000,-500.0,8.5e-05,2]
[422723562,1779312642000,-647.0,8.556e-05,2]
[422723563,1779312642000,-1413.0,8.556e-05,2]
[422723551,1779312642000,-500.0,8.5e-05,2]
[422723542,1779312642000,-500.0,8.5e-05,2]
[422723583,1779312642000,-198.7747613,8.767e-05,2]
[422723609,1779312642000,-940.16,8.767e-05,2]
[422723584,1779312642000,-706.8233,8.767e-05,2]
[422723639,1779312642000,-500.0,8.767e-05,2]
[422723640,1779312642000,-533.43,8.767e-05,2]
[422723635,1779312642000,-500.0,8.767e-05,2]
[422723641,1779312642000,-1288.27,8.767e-05,2]
[422723642,1779312642000,-500.0,8.767e-05,2]
[422723645,1779312642000,-582.7,8.767e-05,2]
[422723644,1779312642000,-500.0,8.767e-05,2]
[422723643,1779312642000,-2023.37,8.767e-05,2]
[422723652,1779312642000,-236.673839,8.767e-05,2]
[422723651,1779312642000,-151.0,8.767e-05,2]
[422723653,1779312642000,-151.0,8.767e-05,2]
[422723646,1779312642000,-500.0,8.767e-05,2]
[422723649,1779312642000,-236.673839,8.767e-05,2]
[422723648,1779312642000,-236.673839,8.767e-05,2]
[422723647,1779312642000,-500.0,8.767e-05,2]
[422723650,1779312642000,-236.673839,8.767e-05,2]
[422723655,1779312642000,-151.0,8.767e-05,2]
[422723665,1779312642000,-4930.57,8.767e-05,2]
[422723654,1779312642000,-151.0,8.767e-05,2]
[422723656,1779312642000,-151.0,8.767e-05,2]
[422723588,1779312642000,-539.15,8.767e-05,2]
[422723664,1779312642000,-899.74,8.767e-05,2]
[422723663,1779312642000,-1549.0,8.767e-05,2]
[422723662,1779312642000,-741.66,8.767e-05,2]
[422723659,1779312642000,-661.61,8.767e-05,2]
[422723661,1779312642000,-500.0,8.767e-05,2]
[422723660,1779312642000,-500.0,8.767e-05,2]
[422723658,1779312642000,-500.0,8.767e-05,2]
[422723666,1779312642000,-500.0,8.767e-05,2]
[422723636,1779312642000,-484.40438297,8.767e-05,2]
[422723637,1779312642000,-500.0,8.767e-05,2]
[422723657,1779312642000,-500.0,8.767e-05,2]
[422723634,1779312642000,-500.0,8.767e-05,2]
[422723586,1779312642000,-500.0,8.767e-05,2]
[422723638,1779312642000,-981.02,8.767e-05,2]
[422723602,1779312642000,-647.07,8.767e-05,2]
[422723603,1779312642000,-983.07,8.767e-05,2]
[422723606,1779312642000,-500.0,8.767e-05,2]
[422723605,1779312642000,-726.78,8.767e-05,2]
[422723612,1779312642000,-753.28,8.767e-05,2]
[422723614,1779312642000,-704.93,8.767e-05,2]
[422723616,1779312642000,-500.0,8.767e-05,2]
[422723618,1779312642000,-542.52,8.767e-05,2]
[422723615,1779312642000,-279.96407472,8.767e-05,2]
[422723607,1779312642000,-500.0,8.767e-05,2]
[422723617,1779312642000,-1513.75,8.767e-05,2]
[422723613,1779312642000,-500.0,8.767e-05,2]
[422723611,1779312642000,-500.0,8.767e-05,2]
[422723632,1779312642000,-151.787062,8.767e-05,2]
[422723620,1779312642000,-500.0,8.767e-05,2]
[422723623,1779312642000,-574.79,8.767e-05,2]
[422723628,1779312642000,-151.787062,8.767e-05,2]
[422723629,1779312642000,-151.787062,8.767e-05,2]
[422723627,1779312642000,-741.45,8.767e-05,2]
[422723621,1779312642000,-559.69,8.767e-05,2]
[422723626,1779312642000,-151.787062,8.767e-05,2]
[422723622,1779312642000,-500.0,8.767e-05,2]
[422723619,1779312642000,-500.0,8.767e-05,2]
[422723630,1779312642000,-500.0,8.767e-05,2]
[422723633,1779312642000,-500.0,8.767e-05,2]
[422723624,1779312642000,-500.0,8.767e-05,2]
[422723625,1779312642000,-500.0,8.767e-05,2]
[422723695,1779312643000,-5297.76,8.767e-05,2]
[422723698,1779312643000,-1387.75,8.767e-05,2]
[422723696,1779312643000,-1728.13,8.767e-05,2]
[422723699,1779312643000,-1906.8793121,8.767e-05,2]
[422723697,1779312643000,-1609.78,8.767e-05,2]
[422723700,1779312643000,-9.1506879,8.767e-05,2]
[422723701,1779312643000,-500.0,8.767e-05,2]
[422723703,1779312643000,-1039.67,8.767e-05,2]
[422723707,1779312643000,-723.75,8.767e-05,2]
[422723709,1779312643000,-500.0,8.767e-05,2]
[422723706,1779312643000,-1382.72,8.767e-05,2]
[422723705,1779312643000,-1583.7,8.767e-05,2]
[422723702,1779312643000,-4172.91,8.767e-05,2]
[422723708,1779312643000,-1036.42,8.767e-05,2]
[422723711,1779312643000,-500.0,8.767e-05,2]
[422723716,1779312643000,-4167.16,8.767e-05,2]
[422723710,1779312643000,-160.9983952,8.767e-05,2]
[422723721,1779312643000,-2236.44,8.767e-05,2]
[422723694,1779312643000,-612.91,8.767e-05,2]
[422723715,1779312643000,-430.90848015,8.767e-05,2]
[422723704,1779312643000,-500.0,8.767e-05,2]
[422723693,1779312643000,-3259.7,8.767e-05,2]
[422723679,1779312643000,-984.97,8.767e-05,2]
[422723688,1779312643000,-500.0,8.767e-05,2]
[422723714,1779312643000,-1052.86,8.493e-05,2]
[422723668,1779312643000,-3952.67,8.767e-05,2]
[422723669,1779312643000,-500.0,8.767e-05,2]
[422723670,1779312643000,-2293.71,8.767e-05,2]
[422723667,1779312643000,-2053.91,8.767e-05,2]
[422723677,1779312643000,-500.0,8.767e-05,2]
[422723672,1779312643000,-687.37,8.767e-05,2]
[422723674,1779312643000,-667.6,8.767e-05,2]
[422723675,1779312643000,-500.0,8.767e-05,2]
[422723671,1779312643000,-1293.07,8.767e-05,2]
[422723678,1779312643000,-500.0,8.767e-05,2]
[422723691,1779312643000,-1001.11,8.767e-05,2]
[422723692,1779312643000,-500.0,8.767e-05,2]
[422723680,1779312643000,-500.0,8.767e-05,2]
[422723682,1779312643000,-151.0,8.767e-05,2]
[422723686,1779312643000,-151.0,8.767e-05,2]
[422723683,1779312643000,-500.0,8.767e-05,2]
[422723690,1779312643000,-2167.22,8.767e-05,2]
[422723684,1779312643000,-1194.97,8.767e-05,2]
[422723687,1779312643000,-25838.33,8.767e-05,2]
[422723689,1779312643000,-1366.02,8.767e-05,2]
[422723685,1779312643000,-151.0,8.767e-05,2]
[422723720,1779312643000,-983.2,8.767e-05,2]
[422723681,1779312643000,-1547.85,8.767e-05,2]
[422723719,1779312643000,-500.0,8.767e-05,2]
[422723741,1779312643000,-831.51979763,8.947e-05,2]
[422723742,1779312643000,-56226.5586528,8.98e-05,2]
[422723745,1779312643000,-623.41,9.041e-05,2]
[422723744,1779312643000,-2423.4053,9.041e-05,2]
[422723749,1779312643000,-500.0,9.041e-05,2]
[422723759,1779312643000,-940.16,9.041e-05,2]
[422723761,1779312643000,-753.28,9.041e-05,2]
[422723760,1779312643000,-500.0,9.041e-05,2]
[422723751,1779312643000,-500.0,9.041e-05,2]
[422723754,1779312643000,-647.07,9.041e-05,2]
[422723752,1779312643000,-500.0,9.041e-05,2]
[422723757,1779312643000,-500.0,9.041e-05,2]
[422723750,1779312643000,-500.0,9.041e-05,2]
[422723755,1779312643000,-983.07,9.041e-05,2]
[422723756,1779312643000,-726.78,9.041e-05,2]
[422723748,1779312643000,-539.15,9.041e-05,2]
[422723758,1779312643000,-500.0,9.041e-05,2]
[422723763,1779312643000,-704.93,9.041e-05,2]
[422723764,1779312643000,-201.53596877,9.041e-05,2]
[422723762,1779312643000,-208.63894381,9.041e-05,2]
[422723717,1779312643000,-500.0,8.767e-05,2]
[422723739,1779312643000,-324.880568,8.839e-05,2]
[422723746,1779312643000,-706.8233,9.041e-05,2]
[422723753,1779312643000,-645.88,9.041e-05,2]
[422723743,1779312643000,-862.28603014,9.002e-05,2]
[422723747,1779312643000,-500.0,9.041e-05,2]
[422723713,1779312643000,-69.09151985,8.767e-05,2]
[422723712,1779312643000,-735.38,8.767e-05,2]
[422723718,1779312643000,-529.56,8.767e-05,2]
[422723733,1779312643000,-500.0,8.767e-05,2]
[422723722,1779312643000,-574.12,8.767e-05,2]
[422723734,1779312643000,-1247.79,8.767e-05,2]
[422723727,1779312643000,-500.0,8.767e-05,2]
[422723724,1779312643000,-151.0,8.767e-05,2]
[422723730,1779312643000,-2196.66,8.767e-05,2]
[422723723,1779312643000,-877.17,8.767e-05,2]
[422723731,1779312643000,-5122.9,8.767e-05,2]
[422723732,1779312643000,-644.94,8.767e-05,2]
[422723737,1779312643000,-745.65223616,8.782e-05,2]
[422723738,1779312643000,-773.2413689,8.837e-05,2]
[422723740,1779312643000,-801.85129955,8.892e-05,2]
[422723736,1779312643000,-490.06578803,8.77e-05,2]
[422723735,1779312643000,-500.0,8.767e-05,2]
[422723728,1779312643000,-500.0,8.767e-05,2]
[422723726,1779312643000,-151.0,8.767e-05,2]
[422723725,1779312643000,-1777.68,8.767e-05,2]
[422723729,1779312643000,-1486.64,8.767e-05,2]
[422723789,1779312644000,-400.67459228,9.041e-05,2]
[422723790,1779312644000,-99.32540772,9.041e-05,2]
[422723791,1779312644000,-981.02,9.041e-05,2]
[422723787,1779312644000,-500.0,9.041e-05,2]
[422723784,1779312644000,-306.69258464,9.041e-05,2]
[422723786,1779312644000,-500.0,9.041e-05,2]
[422723788,1779312644000,-500.0,9.041e-05,2]
[422723803,1779312644000,-236.673839,9.041e-05,2]
[422723783,1779312644000,-151.787062,9.041e-05,2]
[422723793,1779312644000,-533.43,9.041e-05,2]
[422723792,1779312644000,-500.0,9.041e-05,2]
[422723795,1779312644000,-500.0,9.041e-05,2]
[422723782,1779312644000,-151.787062,9.041e-05,2]
[422723805,1779312644000,-236.67383296,9.041e-05,2]
[422723785,1779312644000,-151.787054,9.041e-05,2]
[422723781,1779312644000,-741.45,9.041e-05,2]
[422723771,1779312644000,-1513.75,9.041e-05,2]
[422723779,1779312644000,-500.0,9.041e-05,2]
[422723804,1779312644000,-151.0,9.041e-05,2]
[422723765,1779312644000,-1854.88,8.219e-05,2]
[422723769,1779312644000,-1854.88,8.767e-05,2]
[422723767,1779312644000,-1854.88,8.493e-05,2]
[422723770,1779312644000,-298.46403123,9.041e-05,2]
[422723777,1779312644000,-83.81223258,9.041e-05,2]
[422723778,1779312644000,-500.0,9.041e-05,2]
[422723776,1779312644000,-490.97776742,9.041e-05,2]
[422723775,1779312644000,-500.0,9.041e-05,2]
[422723766,1779312644000,-500.0,8.219e-05,2]
[422723772,1779312644000,-500.0,9.041e-05,2]
[422723774,1779312644000,-559.69,9.041e-05,2]
[422723773,1779312644000,-500.0,9.041e-05,2]
[422723780,1779312644000,-151.787062,9.041e-05,2]
[422723768,1779312644000,-1052.86,8.767e-05,2]
[422723800,1779312644000,-500.0,9.041e-05,2]
[422723807,1779312644000,-151.0,9.041e-05,2]
[422723796,1779312644000,-2023.37,9.041e-05,2]
[422723821,1779312644000,-2293.71,9.041e-05,2]
[422723820,1779312644000,-500.0,9.041e-05,2]
[422723822,1779312644000,-1293.07,9.041e-05,2]
[422723823,1779312644000,-687.37,9.041e-05,2]
[422723825,1779312644000,-500.0,9.041e-05,2]
[422723824,1779312644000,-667.6,9.041e-05,2]
[422723811,1779312644000,-500.0,9.041e-05,2]
[422723828,1779312644000,-984.97,9.041e-05,2]
[422723829,1779312644000,-626.14391906,9.041e-05,2]
[422723830,1779312644000,-1547.85,9.041e-05,2]
[422723827,1779312644000,-500.0,9.041e-05,2]
[422723832,1779312644000,-1194.97,9.041e-05,2]
[422723794,1779312644000,-1288.27,9.041e-05,2]
[422723833,1779312644000,-4654.96132326,9.041e-05,2]
[422723826,1779312644000,-500.0,9.041e-05,2]
[422723810,1779312644000,-661.61,9.041e-05,2]
[422723831,1779312644000,-500.0,9.041e-05,2]
[422723813,1779312644000,-741.66,9.041e-05,2]
[422723798,1779312644000,-582.7,9.041e-05,2]
[422723799,1779312644000,-500.0,9.041e-05,2]
[422723797,1779312644000,-500.0,9.041e-05,2]
[422723801,1779312644000,-236.673839,9.041e-05,2]
[422723817,1779312644000,-500.0,9.041e-05,2]
[422723819,1779312644000,-3952.67,9.041e-05,2]
[422723802,1779312644000,-236.673839,9.041e-05,2]
[422723809,1779312644000,-500.0,9.041e-05,2]
[422723808,1779312644000,-500.0,9.041e-05,2]
[422723806,1779312644000,-151.0,9.041e-05,2]
[422723812,1779312644000,-500.0,9.041e-05,2]
[422723814,1779312644000,-1549.0,9.041e-05,2]
[422723816,1779312644000,-4930.57,9.041e-05,2]
[422723818,1779312644000,-2053.91,9.041e-05,2]
[422723815,1779312644000,-899.74,9.041e-05,2]
[422723841,1779312646000,-18411.17285883,9.041e-05,2]
[422723837,1779312646000,-605.65,8.219e-05,2]
[422723839,1779312646000,-605.65,8.493e-05,2]
[422723840,1779312646000,-500.0,8.767e-05,2]
[422723836,1779312646000,-500.0,8.219e-05,2]
[422723838,1779312646000,-500.0,8.493e-05,2]
[422723842,1779312735000,-513.91559169,7.1e-05,2]
[422723843,1779312819000,288.711,6.958e-05,2]
[422723847,1779313172000,25878.21610897,7e-05,2]
[422723848,1779313336000,15906.80363013,7e-05,2]
[422723849,1779313608000,-190.01725528,7.126e-05,2]
[422723870,1779313641000,-152.0,7.682e-05,7]
[422723868,1779313641000,-300.0,7.241e-05,2]
[422723866,1779313641000,-300.0,7.241e-05,2]
[422723867,1779313641000,-300.0,7.241e-05,2]
[422723869,1779313641000,-300.0,7.241e-05,2]
[422723865,1779313641000,-300.0,7.241e-05,2]
[422723863,1779313641000,-300.0,7.241e-05,2]
[422723859,1779313641000,-300.0,7.241e-05,2]
[422723861,1779313641000,-300.0,7.241e-05,2]
[422723862,1779313641000,-300.0,7.241e-05,2]
[422723858,1779313641000,-300.0,7.241e-05,2]
[422723857,1779313641000,-300.0,7.241e-05,2]
[422723856,1779313641000,-300.0,7.241e-05,2]
[422723854,1779313641000,-300.0,7.24e-05,2]
[422723855,1779313641000,-300.0,7.241e-05,2]
[422723851,1779313641000,-152.0,7.154e-05,2]
[422723852,1779313641000,-300.0,7.24e-05,2]
[422723853,1779313641000,-1200.0,7.24e-05,2]
[422723850,1779313641000,-440.26773267,7.126e-05,2]
[422723860,1779313641000,-300.0,7.241e-05,2]
[422723873,1779313641000,-737.0,7.964e-05,2]
[422723864,1779313641000,-300.0,7.241e-05,2]
[422723872,1779313641000,-420.0,7.964e-05,2]
[422723891,1779313641000,-500.0,8.118e-05,2]
[422723890,1779313641000,-500.0,8.118e-05,2]
[422723892,1779313641000,-420.49861488,8.118e-05,2]
[422723889,1779313641000,-500.0,8.118e-05,2]
[422723893,1779313641000,-500.0,8.118e-05,2]
[422723885,1779313641000,-500.0,8.118e-05,2]
[422723887,1779313641000,-500.0,8.118e-05,2]
[422723886,1779313641000,-500.0,8.118e-05,2]
[422723888,1779313641000,-500.0,8.118e-05,2]
[422723871,1779313641000,-152.0,7.685e-05,7]
[422723884,1779313641000,-500.0,8.118e-05,2]
[422723883,1779313641000,-172.1408784,8.118e-05,2]
[422723881,1779313641000,-500.0,8.118e-05,2]
[422723882,1779313641000,-500.0,8.118e-05,2]
[422723877,1779313641000,-200.0,8.118e-05,2]
[422723879,1779313641000,-500.0,8.118e-05,2]
[422723878,1779313641000,-461.69526759,8.118e-05,2]
[422723875,1779313641000,-233.60325383,8.118e-05,2]
[422723876,1779313641000,-500.0,8.118e-05,2]
[422723874,1779313641000,-420.0,7.964e-05,2]
[422723880,1779313641000,-500.0,8.118e-05,2]
[422723894,1779313642000,-3537.67726483,8.119e-05,2]
[422723921,1779313832000,-1861.9400783,7.83e-05,2]
[422723923,1779313832000,-158.9967628,7.963e-05,2]
[422723928,1779313832000,-12999.4219298,8.119e-05,2]
[422723927,1779313832000,-300.0,8.118e-05,2]
[422723925,1779313832000,-300.0,8.118e-05,2]
[422723944,1779313838000,-21133.16630541,8.119e-05,2]
[422723942,1779313838000,-152.0,7.69e-05,7]
[422723943,1779313838000,-4897.15549784,8.119e-05,2]
[422723949,1779313840000,-4865.12127409,8.119e-05,2]
[422723950,1779313840000,-0.00087062,8.119e-05,2]
[422723948,1779313840000,-2686.95647222,8.119e-05,2]
[422723958,1779313843000,-21.11302836,8.119e-05,2]
[422723957,1779313843000,-1518.33347836,8.119e-05,2]
[422723961,1779313847000,-776.39520267,8.119e-05,2]
[422723960,1779313847000,-2310.98700136,8.119e-05,2]
[422723969,1779314203000,159.496813,3.627e-05,2]
[422723970,1779314203000,159.496813,4.208e-05,2]
[422723971,1779314203000,159.496813,4.789e-05,2]
[422723974,1779314204000,159.496813,6.532e-05,2]
[422723973,1779314204000,159.496813,5.951e-05,2]
[422723972,1779314204000,159.496813,5.37e-05,2]
[422723977,1779314286000,888.0,0.00017808,120]
[422724048,1779315032000,-1036.69568593,8.017e-05,2]
[422724049,1779315032000,-4434.72005924,8.017e-05,2]
[422724037,1779315032000,-159.496813,7.112e-05,2]
[422724035,1779315032000,-300.0,7.005e-05,2]
[422724036,1779315032000,-649.31582721,7.059e-05,2]
[422724038,1779315032000,-335.71428041,7.112e-05,2]
[422724039,1779315032000,-152.0,7.689e-05,7]
[422724045,1779315032000,-3747.739065,8.017e-05,2]
[422724046,1779315032000,-4441.3250997,8.017e-05,2]
[422724040,1779315032000,-151.0,7.968e-05,2]
[422724047,1779315032000,-784.5277614,8.017e-05,2]
[422724043,1779315032000,-209.0,8.016e-05,2]
[422724044,1779315032000,-300.0,8.016e-05,2]
[422724042,1779315032000,-300.0,8.016e-05,2]
[422724041,1779315032000,-151.0,7.968e-05,2]
[422724050,1779315032000,-525.07240585,8.017e-05,2]
[422724070,1779315038000,-1268.45305929,8.017e-05,2]
[422724069,1779315038000,-836.73170697,8.017e-05,2]
[422724072,1779315038000,-860.57466215,8.017e-05,2]
[422724071,1779315038000,-4991.96987597,8.017e-05,2]
[422724077,1779315038000,-29852.90502568,8.119e-05,2]
[422724075,1779315038000,-189.74118105,8.114e-05,2]
[422724076,1779315038000,-537.6845,8.114e-05,2]
[422724074,1779315038000,-321.607,8.114e-05,2]
[422724078,1779315038000,-10209.98579081,8.119e-05,2]
[422724080,1779315038000,-140488.54590891,8.119e-05,2]
[422724073,1779315038000,-191.9171517,8.017e-05,2]
[422724089,1779315040000,-1776.13358044,8.119e-05,2]
[422724094,1779315043000,-367.45239153,8.119e-05,2]
[422724103,1779315046000,-10830.25083971,8.119e-05,2]
[422724102,1779315046000,-109963.84543252,8.119e-05,2]
[422724150,1779315989000,193.99094663,0.00013727,120]
[422724188,1779316233000,-151.0,7.545e-05,2]
[422724197,1779316233000,-300.0,8.101e-05,2]
[422724217,1779316233000,-500.0,8.111e-05,2]
[422724219,1779316233000,-500.0,8.111e-05,2]
[422724221,1779316233000,-500.0,8.111e-05,2]
[422724208,1779316233000,-500.0,8.111e-05,2]
[422724223,1779316233000,-500.0,8.111e-05,2]
[422724212,1779316233000,-500.0,8.111e-05,2]
[422724226,1779316233000,-500.0,8.111e-05,2]
[422724204,1779316233000,-343.048,8.102e-05,2]
[422724224,1779316233000,-500.0,8.111e-05,2]
[422724201,1779316233000,-1022.8225588,8.102e-05,2]
[422724177,1779316233000,-456.5974351,7.146e-05,2]
[422724186,1779316233000,-151.0,7.319e-05,2]
[422724195,1779316233000,-173.70128651,8.049e-05,2]
[422724184,1779316233000,-151.0,7.309e-05,2]
[422724182,1779316233000,-151.0,7.309e-05,2]
[422724180,1779316233000,-180.6013587,7.309e-05,2]
[422724179,1779316233000,-665.05442794,7.228e-05,2]
[422724190,1779316233000,-570.31594285,7.678e-05,2]
[422724194,1779316233000,-3697.43296089,8.015e-05,2]
[422724192,1779316233000,-456.6225983,7.968e-05,2]
[422724175,1779316233000,-151.0,7.146e-05,2]
[422724173,1779316233000,-151.0,7.146e-05,2]
[422724199,1779316233000,-1013.4084272,8.102e-05,2]
[422724214,1779316233000,-647.48195958,8.111e-05,2]
[422724271,1779316233000,-500.0,8.111e-05,2]
[422724210,1779316233000,-500.0,8.111e-05,2]
[422724206,1779316233000,-1212.114137,8.102e-05,2]
[422724275,1779316233000,-207.52937557,8.111e-05,2]
[422724273,1779316233000,-500.0,8.111e-05,2]
[422724269,1779316233000,-500.0,8.111e-05,2]
[422724261,1779316233000,-500.0,8.111e-05,2]
[422724266,1779316233000,-500.0,8.111e-05,2]
[422724264,1779316233000,-500.0,8.111e-05,2]
[422724259,1779316233000,-500.0,8.111e-05,2]
[422724240,1779316233000,-303.77269224,8.111e-05,2]
[422724242,1779316233000,-500.0,8.111e-05,2]
[422724257,1779316233000,-500.0,8.111e-05,2]
[422724255,1779316233000,-500.0,8.111e-05,2]
[422724267,1779316233000,-500.0,8.111e-05,2]
[422724253,1779316233000,-500.0,8.111e-05,2]
[422724229,1779316233000,-500.0,8.111e-05,2]
[422724237,1779316233000,-500.0,8.111e-05,2]
[422724231,1779316233000,-163.7375505,8.111e-05,2]
[422724233,1779316233000,-511.67211176,8.111e-05,2]
[422724246,1779316233000,-467.1023814,8.111e-05,2]
[422724235,1779316233000,-500.0,8.111e-05,2]
[422724248,1779316233000,-500.0,8.111e-05,2]
[422724250,1779316233000,-500.0,8.111e-05,2]
[422724239,1779316233000,-500.0,8.111e-05,2]
[422724252,1779316233000,-500.0,8.111e-05,2]
[422724244,1779316233000,-500.0,8.111e-05,2]
[422724418,1779316238000,-500.0,8.111e-05,2]
[422724416,1779316238000,-500.0,8.111e-05,2]
[422724420,1779316238000,-500.0,8.111e-05,2]
[422724436,1779316238000,-500.0,8.111e-05,2]
[422724402,1779316238000,-500.0,8.111e-05,2]
[422724421,1779316238000,-500.0,8.111e-05,2]
[422724425,1779316238000,-500.0,8.111e-05,2]
[422724431,1779316238000,-500.0,8.111e-05,2]
[422724423,1779316238000,-500.0,8.111e-05,2]
[422724429,1779316238000,-500.0,8.111e-05,2]
[422724433,1779316238000,-500.0,8.111e-05,2]
[422724427,1779316238000,-500.0,8.111e-05,2]
[422724396,1779316238000,-500.0,8.111e-05,2]
[422724435,1779316238000,-500.0,8.111e-05,2]
[422724414,1779316238000,-500.0,8.111e-05,2]
[422724385,1779316238000,-500.0,8.111e-05,2]
[422724411,1779316238000,-500.0,8.111e-05,2]
[422724394,1779316238000,-543.64294541,8.111e-05,2]
[422724409,1779316238000,-500.0,8.111e-05,2]
[422724398,1779316238000,-500.0,8.111e-05,2]
[422724392,1779316238000,-500.0,8.111e-05,2]
[422724407,1779316238000,-500.0,8.111e-05,2]
[422724405,1779316238000,-500.0,8.111e-05,2]
[422724403,1779316238000,-500.0,8.111e-05,2]
[422724383,1779316238000,-500.0,8.111e-05,2]
[422724381,1779316238000,-191.42299991,8.111e-05,2]
[422724390,1779316238000,-500.0,8.111e-05,2]
[422724387,1779316238000,-500.0,8.111e-05,2]
[422724389,1779316238000,-500.0,8.111e-05,2]
[422724439,1779316238000,-500.0,8.111e-05,2]
[422724400,1779316238000,-500.0,8.111e-05,2]
[422724441,1779316238000,-500.0,8.111e-05,2]